[Event "NJSK 2023 Meisjes C"]
[Site "Almelo, Netherlands"]
[Date "2023.05.02"]
[Round "3.2"]
[White "Jorritsma, Eli Alia"]
[Black "Grigoriu, Eva"]
[Result "1-0"]
[TimeControl "90min/40moves + 30min + 30sec/move"]
[WhiteElo "1330"]
[BlackElo "1045"]

1. Nf3 {[%clk 01:30:58]} {[%emt 04:16:12]} Nc6 {[%clk 01:30:52]} {[%emt
00:00:10]} 2. d4 {[%clk 01:31:16]} {[%emt 00:00:11]} d5 {[%clk 01:31:16]}
{[%emt 00:00:07]} 3. b3 {[%clk 01:31:21]} {[%emt 00:00:24]} Bf5 {[%clk
01:31:24]} {[%emt 00:00:22]} 4. a3 {[%clk 01:30:58]} {[%emt 00:00:54]} a6
{[%clk 01:31:06]} {[%emt 00:00:48]} 5. Bb2 {[%clk 01:30:58]} {[%emt 00:00:29]}
e6 {[%clk 01:31:22]} {[%emt 00:00:14]} 6. e3 {[%clk 01:30:53]} {[%emt
00:00:33]} Bd6 {[%clk 01:30:40]} {[%emt 00:01:13]} 7. Bd3 {[%clk 01:29:54]}
{[%emt 00:01:29]} Bg4 {[%clk 01:30:11]} {[%emt 00:01:00]} 8. Nbd2 {[%clk
01:27:56]} {[%emt 00:02:28]} Nge7 {[%clk 01:28:49]} {[%emt 00:01:52]} 9. O-O
{[%clk 01:27:23]} {[%emt 00:01:03]} f6 {[%clk 01:26:19]} {[%emt 00:03:00]} 10.
c4 {[%clk 01:20:43]} {[%emt 00:07:10]} Nf5 {[%clk 01:22:36]} {[%emt 00:04:12]}
11. h3 {[%clk 01:13:39]} {[%emt 00:07:34]} Bxf3 {[%clk 01:22:14]} {[%emt
00:00:53]} 12. Nxf3 {[%clk 01:13:58]} {[%emt 00:00:10]} dxc4 {[%clk 01:17:55]}
{[%emt 00:04:49]} 13. bxc4 {[%clk 01:10:41]} {[%emt 00:03:47]} Qd7 {[%clk
01:12:44]} {[%emt 00:05:42]} 14. Qc2 {[%clk 01:03:28]} {[%emt 00:07:43]} g6
{[%clk 01:07:30]} {[%emt 00:05:44]} 15. e4 {[%clk 00:56:36]} {[%emt 00:07:22]}
Ng7 {[%clk 01:06:14]} {[%emt 00:01:46]} 16. d5 {[%clk 00:54:37]} {[%emt
00:02:30]} Ne5 {[%clk 01:05:25]} {[%emt 00:01:18]} 17. Nxe5 {[%clk 00:54:10]}
{[%emt 00:00:57]} Bxe5 {[%clk 01:05:28]} {[%emt 00:00:28]} 18. Bxe5 {[%clk
00:53:53]} {[%emt 00:00:46]} fxe5 {[%clk 01:05:36]} {[%emt 00:00:22]} 19. Qb2
{[%clk 00:52:40]} {[%emt 00:01:42]} Rb8 {[%clk 01:04:13]} {[%emt 00:01:53]} 20.
Qxe5 {[%clk 00:51:29]} {[%emt 00:01:42]} O-O {[%clk 01:04:13]} {[%emt
00:00:29]} 21. Rab1 {[%clk 00:46:12]} {[%emt 00:05:47]} Rfe8 {[%clk 01:02:05]}
{[%emt 00:02:37]} 22. Qc3 {[%clk 00:45:49]} {[%emt 00:00:54]} c6 {[%clk
01:00:31]} {[%emt 00:02:04]} 23. dxc6 {[%clk 00:37:16]} {[%emt 00:09:04]} Qxc6
{[%clk 01:00:49]} {[%emt 00:00:12]} 24. Rfd1 {[%clk 00:31:52]} {[%emt
00:05:54]} Rec8 {[%clk 00:59:35]} {[%emt 00:01:42]} 25. Rbc1 {[%clk 00:29:42]}
{[%emt 00:02:42]} Rc7 {[%clk 00:55:43]} {[%emt 00:04:21]} 26. Rd2 {[%clk
00:24:01]} {[%emt 00:06:13]} Rbc8 {[%clk 00:55:49]} {[%emt 00:00:23]} 27. Rdc2
{[%clk 00:24:08]} {[%emt 00:00:23]} Ne8 {[%clk 00:54:17]} {[%emt 00:01:59]} 28.
e5 {[%clk 00:23:10]} {[%emt 00:01:31]} Ng7 {[%clk 00:52:55]} {[%emt 00:01:52]}
29. Be2 {[%clk 00:17:37]} {[%emt 00:06:03]} Nf5 {[%clk 00:52:10]} {[%emt
00:01:14]} 30. Bf3 {[%clk 00:16:07]} {[%emt 00:02:01]} Qc5 {[%clk 00:52:01]}
{[%emt 00:00:38]} 31. Bg4 {[%clk 00:11:29]} {[%emt 00:05:09]} b5 {[%clk
00:50:35]} {[%emt 00:01:54]} 32. Bxf5 {[%clk 00:07:35]} {[%emt 00:04:25]} gxf5
{[%clk 00:49:45]} {[%emt 00:01:20]} 33. Qa5 {[%clk 00:07:11]} {[%emt 00:00:55]}
Qxe5 {[%clk 00:49:00]} {[%emt 00:01:15]} 34. Qxa6 {[%clk 00:07:11]} {[%emt
00:00:29]} Kf7 {[%clk 00:47:13]} {[%emt 00:02:15]} 35. a4 {[%clk 00:04:09]}
{[%emt 00:03:35]} bxa4 {[%clk 00:45:58]} {[%emt 00:01:45]} 36. Qxa4 {[%clk
00:04:30]} {[%emt 00:00:09]} Qd4 {[%clk 00:46:03]} {[%emt 00:00:25]} 37. Qb3
{[%clk 00:04:10]} {[%emt 00:00:49]} Kf6 {[%clk 00:45:27]} {[%emt 00:01:06]} 38.
Qc3 {[%clk 00:03:15]} {[%emt 00:01:25]} Qxc3 {[%clk 00:45:02]} {[%emt
00:00:55]} 39. Rxc3 {[%clk 00:03:40]} {[%emt 00:00:05]} Ke5 {[%clk 00:45:27]}
{[%emt 00:00:06]} 40. Kh2 {[%clk 00:02:04]} {[%emt 00:02:06]} f4 {[%clk
00:45:05]} {[%emt 00:00:52]} 41. h4 {[%clk 00:01:02]} {[%emt 00:01:31]} h5
{[%clk 00:44:26]} {[%emt 00:01:09]} 42. g3 {[%clk 00:25:26]} {[%emt 00:06:07]}
Rf7 {[%clk 01:14:39]} {[%emt 00:00:17]} 43. Kg2 {[%clk 00:21:57]} {[%emt
00:03:59]} Kd4 {[%clk 01:12:31]} {[%emt 00:02:37]} 44. Rf3 {[%clk 00:17:57]}
{[%emt 00:04:31]} e5 {[%clk 01:12:32]} {[%emt 00:00:28]} 45. gxf4 {[%clk
00:14:44]} {[%emt 00:03:43]} exf4 {[%clk 01:12:00]} {[%emt 00:01:02]} 46. Rfc3
{[%clk 00:13:38]} {[%emt 00:01:37]} Ke4 {[%clk 01:09:49]} {[%emt 00:02:41]} 47.
f3+ {[%clk 00:13:21]} {[%emt 00:00:47]} Kd4 {[%clk 01:10:12]} {[%emt 00:00:06]}
48. Kf2 {[%clk 00:13:27]} {[%emt 00:00:24]} Rg7 {[%clk 01:10:03]} {[%emt
00:00:39]} 49. c5 {[%clk 00:13:08]} {[%emt 00:00:50]} Rg3 {[%clk 01:09:11]}
{[%emt 00:01:20]} 50. Rc4+ {[%clk 00:12:42]} {[%emt 00:00:57]} Kd5 {[%clk
01:09:22]} {[%emt 00:00:19]} 51. Rxf4 {[%clk 00:12:48]} {[%emt 00:00:25]} Rg6
{[%clk 01:08:32]} {[%emt 00:01:19]} 52. Rf5+ {[%clk 00:13:02]} {[%emt
00:00:16]} Kd4 {[%clk 01:08:24]} {[%emt 00:00:39]} 53. Rxh5 {[%clk 00:13:11]}
{[%emt 00:00:20]} Rf6 {[%clk 01:08:24]} {[%emt 00:00:30]} 54. Rg5 {[%clk
00:13:00]} {[%emt 00:00:41]} Rcc6 {[%clk 01:07:49]} {[%emt 00:01:05]} 55. h5
{[%clk 00:12:32]} {[%emt 00:00:58]} Rh6 {[%clk 01:08:01]} {[%emt 00:00:18]} 56.
Kg3 {[%clk 00:12:14]} {[%emt 00:00:48]} Ke3 {[%clk 01:08:17]} {[%emt 00:00:15]}
57. Kg4 {[%clk 00:11:23]} {[%emt 00:01:20]} Rhf6 {[%clk 01:07:52]} {[%emt
00:00:55]} 58. Re5+ {[%clk 00:10:33]} {[%emt 00:01:20]} Kd4 {[%clk 01:07:54]}
{[%emt 00:00:26]} 59. f4 {[%clk 00:10:35]} {[%emt 00:00:30]} Rh6 {[%clk
01:07:30]} {[%emt 00:00:54]} 60. Rce1 {[%clk 00:09:59]} {[%emt 00:01:06]} Kc4
{[%clk 01:06:39]} {[%emt 00:01:22]} 61. f5 {[%clk 00:09:30]} {[%emt 00:00:58]}
Rxc5 {[%clk 01:05:49]} {[%emt 00:01:21]} 62. Rc1+ {[%clk 00:09:52]} {[%emt
00:00:08]} Kd4 {[%clk 01:06:07]} {[%emt 00:00:11]} 63. Rexc5 {[%clk 00:10:05]}
{[%emt 00:00:18]} Ke4 {[%clk 01:06:09]} {[%emt 00:00:28]} 64. Rc6 {[%clk
00:10:09]} {[%emt 00:00:26]} Rh7 {[%clk 01:06:24]} {[%emt 00:00:15]} 65. Rd1
{[%clk 00:10:23]} {[%emt 00:00:16]} Ke3 {[%clk 01:06:33]} {[%emt 00:00:20]} 66.
Re6+ {[%clk 00:10:43]} {[%emt 00:00:10]} Kf2 {[%clk 01:06:54]} {[%emt
00:00:09]} 67. Rd2+ {[%clk 00:11:05]} {[%emt 00:00:08]} Kf1 {[%clk 01:07:06]}
{[%emt 00:00:18]} 68. Rc6 {[%clk 00:11:17]} {[%emt 00:00:17]} Re7 {[%clk
01:07:05]} {[%emt 00:00:33]} 69. Rc1+ {[%clk 00:11:43]} {[%emt 00:00:04]} Re1
{[%clk 01:07:12]} {[%emt 00:00:23]} 70. Rxe1+ {[%clk 00:12:08]} {[%emt
00:00:05]} Kxe1 {[%clk 01:07:30]} {[%emt 00:00:12]} 71. Rh2 {[%clk 00:12:32]}
{[%emt 00:00:05]} Kf1 {[%clk 01:07:49]} {[%emt 00:00:12]} 72. Kg3 {[%clk
00:12:53]} {[%emt 00:00:09]} Ke1 {[%clk 01:08:08]} {[%emt 00:00:10]} 73. Kf3
{[%clk 00:13:18]} {[%emt 00:00:05]} Kd1 {[%clk 01:08:32]} {[%emt 00:00:06]} 74.
Ke3 {[%clk 00:13:45]} {[%emt 00:00:03]} Kc1 {[%clk 01:08:58]} {[%emt 00:00:05]}
75. Kd3 {[%clk 00:14:08]} {[%emt 00:00:07]} Kb1 {[%clk 01:09:22]} {[%emt
00:00:06]} 76. Kc3 {[%clk 00:14:32]} {[%emt 00:00:06]} Ka1 {[%clk 01:09:50]}
{[%emt 00:00:02]} 77. Kb3 {[%clk 00:14:59]} {[%emt 00:00:03]} Kb1 {[%clk
01:10:11]} {[%emt 00:00:09]} 78. Rh1# {[%clk 00:15:19]} {[%emt 00:00:09]} 1-0

[Event "NJSK 2023 Meisjes C"]
[Site "Almelo, Netherlands"]
[Date "2023.05.02"]
[Round "3.3"]
[White "Hagen, Carlijn"]
[Black "Van Apeldoorn, Vera"]
[Result "1-0"]
[TimeControl "90min/40moves + 30min + 30sec/move"]
[WhiteElo "1132"]
[BlackElo "1153"]

1. d4 {[%clk 01:30:56]} {[%emt 00:00:03]} Nf6 {[%clk 01:30:41]} {[%emt
00:00:19]} 2. Bf4 {[%clk 01:31:13]} {[%emt 00:00:13]} g6 {[%clk 01:30:51]}
{[%emt 00:00:20]} 3. e3 {[%clk 01:31:37]} {[%emt 00:00:06]} Bg7 {[%clk
01:31:02]} {[%emt 00:00:19]} 4. Bd3 {[%clk 01:31:21]} {[%emt 00:00:46]} O-O
{[%clk 01:30:27]} {[%emt 00:01:05]} 5. Nf3 {[%clk 01:31:38]} {[%emt 00:00:13]}
d6 {[%clk 01:29:38]} {[%emt 00:01:20]} 6. c3 {[%clk 01:30:46]} {[%emt
00:01:21]} Nfd7 {[%clk 01:29:17]} {[%emt 00:00:51]} 7. Qc2 {[%clk 01:29:13]}
{[%emt 00:02:02]} e5 {[%clk 01:28:46]} {[%emt 00:01:03]} 8. dxe5 {[%clk
01:27:48]} {[%emt 00:01:54]} dxe5 {[%clk 01:28:18]} {[%emt 00:00:58]} 9. Bg3
{[%clk 01:28:05]} {[%emt 00:00:12]} Qe7 {[%clk 01:26:48]} {[%emt 00:02:00]} 10.
Nbd2 {[%clk 01:23:29]} {[%emt 00:05:07]} Nc6 {[%clk 01:21:44]} {[%emt
00:05:35]} 11. h4 {[%clk 01:20:33]} {[%emt 00:03:25]} f5 {[%clk 01:18:43]}
{[%emt 00:03:31]} 12. Bc4+ {[%clk 01:20:29]} {[%emt 00:00:34]} Kh8 {[%clk
01:18:16]} {[%emt 00:00:57]} 13. h5 {[%clk 01:18:26]} {[%emt 00:02:32]} gxh5
{[%clk 01:10:55]} {[%emt 00:07:52]} 14. Rxh5 {[%clk 01:16:59]} {[%emt
00:01:57]} Nf6 {[%clk 01:07:38]} {[%emt 00:03:47]} 15. Rh1 {[%clk 01:12:22]}
{[%emt 00:05:05]} Be6 {[%clk 01:00:23]} {[%emt 00:07:47]} 16. Nxe5 {[%clk
01:10:55]} {[%emt 00:01:56]} Nxe5 {[%clk 00:58:04]} {[%emt 00:02:50]} 17. Bxe5
{[%clk 01:11:16]} {[%emt 00:00:09]} Bxc4 {[%clk 00:56:57]} {[%emt 00:01:36]} 18.
Nxc4 {[%clk 01:10:05]} {[%emt 00:01:41]} b5 {[%clk 00:52:44]} {[%emt 00:04:44]}
19. Bxf6 {[%clk 01:08:56]} {[%emt 00:01:38]} Bxf6 {[%clk 00:51:10]} {[%emt
00:02:05]} 20. Nd2 {[%clk 01:09:04]} {[%emt 00:00:21]} Rad8 {[%clk 00:48:33]}
{[%emt 00:03:08]} 21. O-O-O {[%clk 01:08:22]} {[%emt 00:01:12]} Bg7 {[%clk
00:41:11]} {[%emt 00:07:52]} 22. g4 {[%clk 01:07:01]} {[%emt 00:01:50]} Qe5
{[%clk 00:37:01]} {[%emt 00:04:41]} 23. g5 {[%clk 01:02:29]} {[%emt 00:05:00]}
Rd6 {[%clk 00:34:00]} {[%emt 00:03:33]} 24. Nf3 {[%clk 00:58:11]} {[%emt
00:04:46]} Rxd1+ {[%clk 00:31:47]} {[%emt 00:02:44]} 25. Qxd1 {[%clk 00:58:29]}
{[%emt 00:00:12]} Qe6 {[%clk 00:31:21]} {[%emt 00:00:56]} 26. Nd4 {[%clk
00:55:31]} {[%emt 00:03:28]} Qxa2 {[%clk 00:28:14]} {[%emt 00:03:38]} 27. Qh5
{[%clk 00:53:59]} {[%emt 00:02:01]} Qg8 {[%clk 00:27:04]} {[%emt 00:01:40]} 28.
Ne6 {[%clk 00:50:28]} {[%emt 00:04:00]} Rc8 {[%clk 00:24:52]} {[%emt 00:02:43]}
29. g6 {[%clk 00:47:37]} {[%emt 00:03:20]} Bf6 {[%clk 00:19:01]} {[%emt
00:06:23]} 30. Qxf5 {[%clk 00:44:39]} {[%emt 00:03:27]} Bg7 {[%clk 00:11:57]}
{[%emt 00:07:34]} 31. Rxh7+ {[%clk 00:44:49]} {[%emt 00:00:20]} Qxh7 {[%clk
00:12:11]} {[%emt 00:00:17]} 32. gxh7 {[%clk 00:45:08]} {[%emt 00:00:10]} Re8
{[%clk 00:11:52]} {[%emt 00:00:49]} 33. Nxg7 {[%clk 00:45:15]} {[%emt
00:00:23]} Kxg7 {[%clk 00:12:15]} {[%emt 00:00:07]} 34. Qg5+ {[%clk 00:45:40]}
{[%emt 00:00:05]} Kh8 {[%clk 00:12:30]} {[%emt 00:00:16]} 35. Qf6+ {[%clk
00:45:57]} {[%emt 00:00:12]} Kxh7 {[%clk 00:12:45]} {[%emt 00:00:15]} 36. Qf7+
{[%clk 00:46:23]} {[%emt 00:00:04]} Kh6 {[%clk 00:12:57]} {[%emt 00:00:19]} 37.
Qxe8 {[%clk 00:46:46]} {[%emt 00:00:07]} c5 {[%clk 00:13:06]} {[%emt 00:00:20]}
38. Qg8 {[%clk 00:47:09]} {[%emt 00:00:06]} b4 {[%clk 00:13:28]} {[%emt
00:00:10]} 39. Kd1 {[%clk 00:47:23]} {[%emt 00:00:15]} bxc3 {[%clk 00:13:33]}
{[%emt 00:00:26]} 40. bxc3 {[%clk 00:47:44]} {[%emt 00:00:09]} a5 {[%clk
00:13:58]} {[%emt 00:00:05]} 41. Ke2 {[%clk 00:48:01]} {[%emt 00:00:12]} a4
{[%clk 00:14:04]} {[%emt 00:00:25]} 42. Kf3 {[%clk 00:48:21]} {[%emt 00:00:10]}
a3 {[%clk 00:14:16]} {[%emt 00:00:18]} 43. Kf4 {[%clk 00:48:40]} {[%emt
00:00:11]} a2 {[%clk 00:14:23]} {[%emt 00:00:23]} 44. Kf5 {[%clk 00:48:34]}
{[%emt 00:00:36]} c4 {[%clk 00:14:19]} {[%emt 00:00:33]} 45. Qg6+ {[%clk
00:48:53]} {[%emt 00:00:09]} 1-0

[Event "NJSK 2023 Meisjes C"]
[Site "Almelo, Netherlands"]
[Date "2023.05.02"]
[Round "3.4"]
[White "Liu, Chia-Yun"]
[Black "Luong, Thao"]
[Result "1/2-1/2"]
[TimeControl "90min/40moves + 30min + 30sec/move"]
[WhiteElo "1470"]
[BlackElo "804"]

1. e4 {[%clk 01:30:57]} {[%emt 00:00:02]} e5 {[%clk 01:30:36]} {[%emt
00:00:24]} 2. Nf3 {[%clk 01:31:21]} {[%emt 00:00:06]} Nc6 {[%clk 01:31:01]}
{[%emt 00:00:06]} 3. Bc4 {[%clk 01:31:45]} {[%emt 00:00:06]} Bc5 {[%clk
01:30:41]} {[%emt 00:00:50]} 4. c3 {[%clk 01:32:07]} {[%emt 00:00:08]} Nf6
{[%clk 01:30:55]} {[%emt 00:00:16]} 5. d3 {[%clk 01:32:24]} {[%emt 00:00:13]}
O-O {[%clk 01:30:54]} {[%emt 00:00:30]} 6. a4 {[%clk 01:32:37]} {[%emt
00:00:18]} a5 {[%clk 01:30:42]} {[%emt 00:00:42]} 7. O-O {[%clk 01:32:52]}
{[%emt 00:00:14]} h6 {[%clk 01:30:17]} {[%emt 00:00:56]} 8. Nbd2 {[%clk
01:33:13]} {[%emt 00:00:08]} d6 {[%clk 01:29:59]} {[%emt 00:00:49]} 9. h3
{[%clk 01:32:51]} {[%emt 00:00:52]} Re8 {[%clk 01:29:17]} {[%emt 00:01:11]} 10.
Qb3 {[%clk 01:28:54]} {[%emt 00:04:28]} Qe7 {[%clk 01:28:02]} {[%emt 00:01:44]}
11. Re1 {[%clk 01:28:09]} {[%emt 00:01:16]} Rb8 {[%clk 01:27:04]} {[%emt
00:01:27]} 12. Nf1 {[%clk 01:25:51]} {[%emt 00:02:48]} Be6 {[%clk 01:25:52]}
{[%emt 00:01:43]} 13. Bxe6 {[%clk 01:24:51]} {[%emt 00:01:30]} Qxe6 {[%clk
01:26:10]} {[%emt 00:00:12]} 14. Qxe6 {[%clk 01:25:07]} {[%emt 00:00:13]} Rxe6
{[%clk 01:26:33]} {[%emt 00:00:08]} 15. Ng3 {[%clk 01:24:57]} {[%emt 00:00:40]}
b5 {[%clk 01:25:03]} {[%emt 00:02:01]} 16. Re2 {[%clk 01:19:55]} {[%emt
00:05:32]} b4 {[%clk 01:24:05]} {[%emt 00:01:27]} 17. Be3 {[%clk 01:17:06]}
{[%emt 00:03:19]} bxc3 {[%clk 01:22:51]} {[%emt 00:01:44]} 18. Bxc5 {[%clk
01:13:16]} {[%emt 00:04:20]} cxb2 {[%clk 01:20:42]} {[%emt 00:02:39]} 19. Rb1
{[%clk 01:12:42]} {[%emt 00:01:05]} dxc5 {[%clk 01:19:58]} {[%emt 00:01:14]} 20.
Rexb2 {[%clk 01:11:42]} {[%emt 00:01:30]} Rb4 {[%clk 01:18:38]} {[%emt
00:01:49]} 21. Rxb4 {[%clk 01:10:27]} {[%emt 00:01:45]} cxb4 {[%clk 01:18:37]}
{[%emt 00:00:30]} 22. Kf1 {[%clk 01:08:49]} {[%emt 00:02:09]} Nd7 {[%clk
01:15:22]} {[%emt 00:03:46]} 23. Nf5 {[%clk 01:07:00]} {[%emt 00:02:18]} Nc5
{[%clk 01:14:03]} {[%emt 00:01:50]} 24. Ke2 {[%clk 00:57:27]} {[%emt 00:10:03]}
Nxa4 {[%clk 01:13:47]} {[%emt 00:00:46]} 25. Kd2 {[%clk 00:57:02]} {[%emt
00:00:55]} Nc3 {[%clk 01:12:27]} {[%emt 00:01:49]} 26. Ra1 {[%clk 00:56:28]}
{[%emt 00:01:03]} Re8 {[%clk 01:09:27]} {[%emt 00:03:30]} 27. Ne1 {[%clk
00:54:28]} {[%emt 00:02:30]} Rd8 {[%clk 01:08:43]} {[%emt 00:01:15]} 28. f3
{[%clk 00:54:00]} {[%emt 00:00:57]} Ra8 {[%clk 01:06:26]} {[%emt 00:02:48]} 29.
Nc2 {[%clk 00:52:55]} {[%emt 00:01:35]} Nb5 {[%clk 01:04:42]} {[%emt 00:02:14]}
30. Nfe3 {[%clk 00:51:14]} {[%emt 00:02:11]} Ncd4 {[%clk 01:03:56]} {[%emt
00:01:16]} 31. Nxd4 {[%clk 00:46:34]} {[%emt 00:05:10]} Nxd4 {[%clk 01:03:53]}
{[%emt 00:00:34]} 32. Kd1 {[%clk 00:46:24]} {[%emt 00:00:39]} b3 {[%clk
01:03:06]} {[%emt 00:01:18]} 33. Kc1 {[%clk 00:45:08]} {[%emt 00:01:44]} a4
{[%clk 01:02:07]} {[%emt 00:01:31]} 34. Kb2 {[%clk 00:44:25]} {[%emt 00:01:12]}
Nb5 {[%clk 00:59:16]} {[%emt 00:03:21]} 35. Nc4 {[%clk 00:43:22]} {[%emt
00:01:33]} f6 {[%clk 00:57:55]} {[%emt 00:01:52]} 36. Nd2 {[%clk 00:40:58]}
{[%emt 00:02:53]} Nd4 {[%clk 00:55:14]} {[%emt 00:03:11]} 37. Nc4 {[%clk
00:37:19]} {[%emt 00:04:09]} Nc2 {[%clk 00:53:23]} {[%emt 00:02:21]} 38. Rc1
{[%clk 00:35:49]} {[%emt 00:02:00]} Nb4 {[%clk 00:52:37]} {[%emt 00:01:17]} 39.
Rd1 {[%clk 00:33:29]} {[%emt 00:02:49]} Nc2 {[%clk 00:50:49]} {[%emt 00:02:18]}
40. Na3 {[%clk 00:31:49]} {[%emt 00:02:10]} Nxa3 {[%clk 00:50:01]} {[%emt
00:01:18]} 41. Kxa3 {[%clk 00:32:09]} {[%emt 00:00:10]} Kf8 {[%clk 00:49:37]}
{[%emt 00:00:55]} 42. Rc1 {[%clk 00:32:27]} {[%emt 00:00:12]} Ra7 {[%clk
00:49:42]} {[%emt 00:00:25]} 43. Rd1 {[%clk 00:31:45]} {[%emt 00:01:12]} Ke7
{[%clk 00:49:51]} {[%emt 00:00:21]} 44. d4 {[%clk 00:31:51]} {[%emt 00:00:23]}
Kd6 {[%clk 00:48:26]} {[%emt 00:01:55]} 45. dxe5+ {[%clk 00:30:15]} {[%emt
00:02:07]} Kxe5 {[%clk 00:48:44]} {[%emt 00:00:11]} 46. g3 {[%clk 00:30:36]}
{[%emt 00:00:09]} c6 {[%clk 00:46:15]} {[%emt 00:02:59]} 47. Rd3 {[%clk
00:30:01]} {[%emt 00:01:05]} g5 {[%clk 00:45:21]} {[%emt 00:01:24]} 48. Rd1
{[%clk 00:28:49]} {[%emt 00:01:41]} f5 {[%clk 00:44:05]} {[%emt 00:01:47]} 49.
exf5 {[%clk 00:28:24]} {[%emt 00:00:55]} Kxf5 {[%clk 00:44:17]} {[%emt
00:00:18]} 50. Rd6 {[%clk 00:28:40]} {[%emt 00:00:14]} c5 {[%clk 00:44:01]}
{[%emt 00:00:46]} 51. Rd5+ {[%clk 00:28:12]} {[%emt 00:00:59]} Ke6 {[%clk
00:43:10]} {[%emt 00:01:20]} 52. Rxc5 {[%clk 00:28:08]} {[%emt 00:00:35]} Rf7
{[%clk 00:41:09]} {[%emt 00:02:30]} 53. Rc6+ {[%clk 00:22:55]} {[%emt
00:05:43]} Kd5 {[%clk 00:40:59]} {[%emt 00:00:40]} 54. Rxh6 {[%clk 00:23:06]}
{[%emt 00:00:19]} Rxf3 {[%clk 00:41:15]} {[%emt 00:00:14]} 55. h4 {[%clk
00:20:06]} {[%emt 00:03:30]} Rxg3 {[%clk 00:40:53]} {[%emt 00:00:51]} 56. hxg5
{[%clk 00:20:28]} {[%emt 00:00:10]} Rxg5 {[%clk 00:41:02]} {[%emt 00:00:20]} 57.
Kxa4 {[%clk 00:18:50]} {[%emt 00:02:09]} b2 {[%clk 00:41:19]} {[%emt 00:00:12]}
58. Rb6 {[%clk 00:17:38]} {[%emt 00:01:42]} Rg2 {[%clk 00:40:43]} {[%emt
00:01:05]} 59. Ka3 {[%clk 00:17:33]} {[%emt 00:00:36]} 1/2-1/2

[Event "NJSK 2023 Meisjes C"]
[Site "Almelo, Netherlands"]
[Date "2023.05.02"]
[Round "3.5"]
[White "Rutten, Lenthe"]
[Black "Regterschot, Frederieke"]
[Result "0-1"]
[TimeControl "90min/40moves + 30min + 30sec/move"]
[WhiteElo "604"]
[BlackElo "966"]

1. d4 {[%clk 01:30:59]} d5 {[%clk 01:30:49]} {[%emt 00:00:12]} 2. c4 {[%clk
01:31:24]} {[%emt 00:00:05]} c6 {[%clk 01:31:04]} {[%emt 00:00:15]} 3. Nc3
{[%clk 01:31:31]} {[%emt 00:00:21]} Nf6 {[%clk 01:31:17]} {[%emt 00:00:19]} 4.
Bg5 {[%clk 01:31:32]} {[%emt 00:00:28]} Bf5 {[%clk 01:30:49]} {[%emt 00:00:59]}
5. e3 {[%clk 01:30:48]} {[%emt 00:01:14]} Ne4 {[%clk 01:30:30]} {[%emt
00:00:49]} 6. Bd3 {[%clk 01:30:20]} {[%emt 00:00:57]} Nxg5 {[%clk 01:29:55]}
{[%emt 00:01:05]} 7. Bxf5 {[%clk 01:30:25]} {[%emt 00:00:25]} dxc4 {[%clk
01:30:04]} {[%emt 00:00:21]} 8. d5 {[%clk 01:30:07]} {[%emt 00:00:49]} cxd5
{[%clk 01:30:07]} {[%emt 00:00:27]} 9. Nxd5 {[%clk 01:30:10]} {[%emt 00:00:26]}
e6 {[%clk 01:30:06]} {[%emt 00:00:31]} 10. Qa4+ {[%clk 01:29:23]} {[%emt
00:01:17]} Nc6 {[%clk 01:29:50]} {[%emt 00:00:46]} 11. Nb4 {[%clk 01:28:40]}
{[%emt 00:01:13]} Bxb4+ {[%clk 01:29:12]} {[%emt 00:01:08]} 12. Ke2 {[%clk
01:27:44]} {[%emt 00:01:26]} exf5 {[%clk 01:29:19]} {[%emt 00:00:24]} 13. a3
{[%clk 01:27:36]} {[%emt 00:00:37]} Qd3# {[%clk 01:29:33]} {[%emt 00:00:13]}
0-1